Cogmind - Beta 16 @@@ ROGUE MODE // 2025.12.03 @ 20:33:40 Player: most_lamentable Result: Self-destructed Performance ------------- Evolutions (1) 500 Regions Visited (2) 400 Robots Destroyed (16) 80 Value Destroyed (421) 421 Prototype IDs (0) 0 Alien Tech Used (0) 0 Bonus (0) 0 TOTAL SCORE: 1401 Bonus ------- None Cogmind --------- Core Integrity 341/400 Matter 295/300 Energy 100/100 System Corruption 0% Temperature Cool (6) Movement Walking (105) Location -9/Materials Parts ------- > --- POWER (1) -------- (None) > --- PROPULSION (2) --- Aluminum Leg > --- UTILITY (2) ------ Small Storage Unit Transport Network Coupler > --- WEAPON (4) ------- Light Assault Rifle Light Assault Rifle > --- INVENTORY (8) ---- Aluminum Leg Aluminum Leg Large Matter Pod (150) Improved EM Shotgun Medium Laser Light Assault Rifle Heavy Assault Rifle Datajack Peak State ------------ > --- POWER ------------ Ion Engine > --- PROPULSION ------- Aluminum Leg Improved Aluminum Leg > --- UTILITY ---------- Small Storage Unit Transport Network Coupler > --- WEAPON ----------- Light Assault Rifle Light Assault Rifle Light Assault Rifle Heavy Assault Rifle > --- INVENTORY -------- Aluminum Leg Aluminum Leg Large Matter Pod Improved EM Shotgun Medium Laser Light Assault Rifle Light Assault Rifle Datajack [Rating: 12] Favorites ----------- Power Ion Engine Engine Ion Engine Propulsion Aluminum Leg Leg Aluminum Leg Utility Small Storage Unit Device Structural Scanner Storage Small Storage Unit Processor Transport Network Coupler Weapon Light Assault Rifle Energy Gun Small Laser Ballistic Gun Light Assault Rifle Build | -11 -10 -9 ------- Run | Yrd Mat Mat Slots Evolved 2 | . . 2 Power . | . . . Propulsion . | . . . Utility . | . . . Weapon 2 | . . 2 Parts Attached 17 | 6 4 7 Power 1 | 1 . . Engine 1 | 1 . . Core . | . . . Reactor . | . . . Propulsion 4 | 2 . 2 Treads . | . . . Leg 4 | 2 . 2 Wheel . | . . . Hover . | . . . Flight . | . . . Utility 4 | 1 3 . Device 2 | . 2 . Storage 1 | 1 . . Processor 1 | . 1 . Hackware . | . . . Protection . | . . . Artifact . | . . . Weapon 8 | 2 1 5 Energy Gun 1 | 1 . . Energy Cannon . | . . . Ballistic Gun 7 | 1 1 5 Ballistic Cannon . | . . . Launcher . | . . . Special Weapon . | . . . Impact Weapon . | . . . Slashing Weapon . | . . . Piercing Weapon . | . . . Special Melee Weapon . | . . . Unidentified Prototypes . | . . . Parts Lost 3 | . . 3 Power 1 | . . 1 Propulsion 1 | . . 1 Utility . | . . . Weapon 1 | . . 1 Highest Loss Streak 3 | . . 3 To Critical Strikes . | . . . Average Backups 7 | 3 7 7 Power . | . 1 . Propulsion 1 | 2 1 1 Utility 1 | . 1 1 Weapon 3 | . 3 3 Tool/Special . | . . . Unused Backups 12 | . 4 8 Power 1 | . . 1 Propulsion 5 | . 4 1 Utility 1 | . . 1 Weapon 4 | . . 4 Tool/Special 1 | . . 1 Average Slot Usage (%) 97 | . 97 97 Engine 12 | . 14 10 Leg 24 | . 28 22 Device 3 | . 8 . Storage 12 | . 14 11 Processor 7 | . 3 11 Energy Gun 1 | . 2 . Ballistic Gun 35 | . 25 42 Peak Build Rating 12 | 6 7 12 Average Rating 9 | 4 6 11 On Entrance 4 | . 6 7 Avg Prop Armor Cover (%) . | . . . Naked Turns . | . . . Heaviest Build 16 | 12 13 16 Greatest Support 23 | 20 20 23 Greatest Overweight (x) 1 | 1 . . Average Overweight (x) . | . . . Largest Inventory Capacity 8 | 8 8 8 Average Capacity 7 | 6 8 8 Most Carried 8 | 6 8 8 Average Carried 7 | 3 7 7 Final Capacity 8 | 8 8 8 Final Carried 8 | 6 8 8 Class Distribution -------------------- 46% | Mutant 41% | Scientist-Skirmisher 12% | Skirmisher Dominant Class ---------------- Mutant | -10/Materials Scientist-Skirmisher | -9/Materials Resources | -11 -10 -9 ----------- Run | Yrd Mat Mat Matter Collected 696 | 208 199 289 Remotely . | . . . Salvage Created 677 | . 147 530 Parts 28 | . 5 23 Haulers Intercepted 2 | . 1 1 Recyclers Shooed . | . . . Parts Field Recycled . | . . . Retrieved Matter . | . . . Parts Self-Destructed . | . . . Prevented . | . . . Parts Restored . | . . . Kills | -11 -10 -9 ------- Run | Yrd Mat Mat Combat Hostiles Destroyed 12 | . 4 8 Guns 12 | . 4 8 Classes Destroyed 6 | . 3 3 Hauler 2 | . 1 1 Recycler 1 | . . 1 Watcher 1 | . . 1 Swarmer 3 | . 3 . Grunt 6 | . 1 5 Sentry 3 | . . 3 Best Kill Streak 4 | . 3 4 Combat Bots Only 4 | . 3 4 Max Kills in Single Turn 1 | . 1 1 Gunslinging . | . . . Exploded . | . . . Melee . | . . . Uniques/NPCs Destroyed . | . . . Combat | -11 -10 -9 -------- Run | Yrd Mat Mat Hostile Shots Fired 68 | . 28 40 Missed 17 | . 11 6 Hits 51 | . 17 34 Melee 5 | . . 5 Projectile 46 | . 17 29 Critical Strikes 2 | . . 2 Damage Taken 682 | . 155 527 Core 94 | . 35 59 Absorbed by Shields . | . . . Core Remaining (%) 93 | 100 86 . Volleys Fired 49 | . 21 28 Largest 4 | . 2 4 Hottest 83 | . 40 83 Shots Fired 152 | . 42 110 Gun 152 | . 42 110 Cannon . | . . . Launcher . | . . . Special . | . . . Kinetic 152 | . 42 110 Thermal . | . . . Explosive . | . . . Electromagnetic . | . . . Robot Hit Streak 16 | . 6 16 Robot Miss Streak 9 | . 9 2 Penetration Max . | . . . Secondary Targets 2 | . 1 1 Max Gunslinging Chain 1 | . 1 1 Shots Hit Robots 107 | . 20 87 Core Hits 35 | . 8 27 Critical Kills 1 | . . 1 Critical Parts Destroyed 2 | . 1 1 Critical Strikes 3 | . 1 2 Destroy 3 | . 1 2 Melee Attacks . | . . . Impact . | . . . Slashing . | . . . Piercing . | . . . Sneak Attacks . | . . . Combat Hostiles . | . . . Follow-up Attacks . | . . . Damage Inflicted 954 | . 161 793 Guns 954 | . 161 793 Cannons . | . . . Explosions . | . . . Melee . | . . . Ramming . | . . . Kinetic 954 | . 161 793 Thermal . | . . . Explosive . | . . . Electromagnetic . | . . . Impact . | . . . Slashing . | . . . Piercing . | . . . Highest Corruption . | . . . Average Corruption . | . . . Corruption Purged . | . . . Corruption Blocked . | . . . Overload Shots . | . . . Overflow Damage . | . . . Projectiles . | . . . Explosions . | . . . Melee . | . . . Knockbacks . | . . . Impact . | . . . Kinetic . | . . . Secondary . | . . . Self-Inflicted Damage . | . . . Shots . | . . . Rammed . | . . . Targets Rammed . | . . . Kicked . | . . . Crushed . | . . . Highest Temperature 144 | . 12 144 Average Temperature 44 | . 8 46 Received Heat Transfer 219 | . 36 183 Siege Activations . | . . . Martial Activations . | . . . Shielding Activations . | . . . Robots Disrupted . | . . . Combat Hostiles . | . . . Robots Corrupted . | . . . Combat Hostiles . | . . . Parts Fried . | . . . Impact Corruptions . | . . . Robots Melted . | . . . Combat Hostiles . | . . . Parts Melted . | . . . Heat Transferred . | . . . Parts Sabotaged . | . . . Parts Stolen . | . . . Parts Stripped . | . . . Power Chain Reactions . | . . . Alert | -11 -10 -9 ------- Run | Yrd Mat Mat Maximum Alert Level . | . . . Low Security (%) 100 | 100 100 100 Level 1 . | . . . Level 2 . | . . . Level 3 . | . . . Level 4 . | . . . Level 5 . | . . . High Security . | . . . Max Security . | . . . Peak Influence 97 | . 60 97 Initial . | . . . Average 29 | . 16 43 Influence Increases 384 | . 103 281 Destroy 0b10 Robot/C 240 | . 80 160 Destroy 0b10 Robot/NC 20 | . 5 15 Destroy Leader 66 | . 12 54 Successful Hack 12 | . 6 6 Destroy Structure 1 | . . 1 Lose Combat Pursuer 45 | . . 45 Influence Decreases 334 | . 103 231 Time Decay 304 | . 103 201 Lost Part 30 | . . 30 Squads Dispatched 1 | . 1 . Investigation . | . . . Extermination . | . . . Reinforcement 1 | . 1 . Assault . | . . . Garrison . | . . . Intercept . | . . . Searches Triggered . | . . . Construction Impeded . | . . . Haulers Reinforced . | . . . Active Scanning Responses . | . . . Cargo Convoy Interrupts . | . . . Stealth | -11 -10 -9 --------- Run | Yrd Mat Mat Distress Signals 2 | . . 2 Communications Jammed . | . . . Distress Signals . | . . . Times Spotted 33 | . 12 21 Peak Tracking Total 6 | . 5 6 Tactical Retreats 2 | . . 2 Traps | -11 -10 -9 ------- Run | Yrd Mat Mat Traps Triggered . | . . . Indirectly . | . . . Trap Hack Attempts . | . . . Triggered . | . . . Disarmed . | . . . Reprogrammed . | . . . Reused . | . . . Traps Extracted . | . . . Installed . | . . . Triggered . | . . . Machines | -11 -10 -9 ---------- Run | Yrd Mat Mat Machines Disabled . | . . . Max in Single Turn . | . . . Machines Repaired . | . . . Machines Dismantled . | . . . Machines Sabotaged . | . . . Overloaded Fab Kills . | . . . Hacking | -11 -10 -9 --------- Run | Yrd Mat Mat Machines Accessed 4 | . 1 3 Terminals 2 | . 1 1 Fabricators . | . . . Repair Stations . | . . . Recycling Units 1 | . . 1 Scanalyzers 1 | . . 1 Garrison Access . | . . . Total Hacks 12 | . 3 9 Successful 9 | . 1 8 Failed 3 | . 2 1 Catastrophic 1 | . 1 . Database Lockouts . | . . . Manual 3 | . 3 . Terminals 4 | . 3 1 Fabricators . | . . . Repair Stations . | . . . Recycling Units 2 | . . 2 Scanalyzers 6 | . . 6 Garrison Access . | . . . Terminal Hacks 2 | . 1 1 Emergency Access Points 1 | . . 1 Terminal Index 1 | . 1 . Fabricator Hacks . | . . . Repair Station Hacks . | . . . Recycling Unit Hacks 1 | . . 1 Report Inventory 1 | . . 1 Scanalyzer 6 | . . 6 Retrieve Study 6 | . . 6 Garrison Access Hacks . | . . . Unauthorized Hacks . | . . . Terminals . | . . . Fabricators . | . . . Repair Stations . | . . . Recycling Units . | . . . Scanalyzers . | . . . Garrison Access . | . . . Data Cores Recovered . | . . . Used . | . . . Hacking Detections 3 | . 1 2 Full Trace Events . | . . . Feedback Events . | . . . Feedback Blocked . | . . . Robot Schematics Acquired . | . . . Robots Built . | . . . Authchips . | . . . Time . | . . . Total Robot Build Rating . | . . . Part Schematics Acquired . | . . . Parts Built . | . . . Authchips . | . . . Time . | . . . Total Part Build Rating . | . . . Part Studies Acquired 6 | . . 6 Parts Repaired . | . . . Time . | . . . Parts Recycled . | . . . Recycled Matter . | . . . Retrieved Matter . | . . . Retrieved Components . | . . . Parts Scanalyzed . | . . . Part Schematics Acquired . | . . . Parts Damaged . | . . . Bothacking | -11 -10 -9 ------------ Run | Yrd Mat Mat Used RIF Installer . | . . . Robots Hacked . | . . . Non-combat . | . . . Combat . | . . . Robot Hacks Applied . | . . . Relay Couplers Released . | . . . Fabnet Peak Effective % . | . . . Robots Rewired . | . . . Allies Hacked . | . . . Hacks Repelled . | . . . Allies | -11 -10 -9 -------- Run | Yrd Mat Mat Total Allies . | . . . Largest Group . | . . . Highest-Rated Group . | . . . Highest-Rated Ally . | . . . Total Orders . | . . . Ally Attacks . | . . . Total Damage . | . . . Kills . | . . . Allies Corrupted . | . . . Allies Melted . | . . . Intel | -11 -10 -9 ------- Run | Yrd Mat Mat Active Infowar (turns) 799 | . 302 497 Structural 223 | . 223 . T.N.C. 576 | . 79 497 Robot Analysis Total . | . . . Derelict Logs Recovered . | . . . Drone Launches . | . . . Drone Recoveries . | . . . Exploration | -11 -10 -9 ------------- Run | Yrd Mat Mat Turns Passed 922 | 67 358 497 Spaces Moved 596 | 43 228 325 Core 4 | 4 . . Treads . | . . . Legs 592 | 39 228 325 Wheels . | . . . Hover . | . . . Flight . | . . . Fastest Speed 50 | 50 120 105 Average Speed 112 | 114 120 107 Slowest Speed 120 | 120 120 120 Overloaded Moves . | . . . Propulsion Burnouts . | . . . Robots Hopped . | . . . Potential Cave-ins . | . . . Cave-ins Triggered . | . . . Exploration Rate (%) 21 | 4 32 28 Regions Visited 2 Branch Regions . Pre-discovered Areas . | . . . Known Exits Taken . | . . . Unknown Exits Taken 2 | 1 1 . Scrap Searched . | . . . Spaces Dug . | . . . Terrain Destroyed . | . . . Melee . | . . . Projectile . | . . . AOE . | . . . Terrain Rammed . | . . . Walls Destroyed . | . . . Machines Disabled . | . . . Actions | -11 -10 -9 --------- Run | Yrd Mat Mat Total 764 | 60 281 423 Wait 67 | . 16 51 Move 594 | 42 227 325 Hop . | . . . Pick Up 23 | 12 7 4 Fast Attach 1 | . 1 . Attach 9 | 6 1 2 Detach . | . . . Swap 8 | . 2 6 Drop 13 | . 6 7 Fire 49 | . 21 28 Melee . | . . . Ram . | . . . Kick . | . . . Crush . | . . . Escape Stasis . | . . . Rewire . | . . . Trap . | . . . Miscellaneous . | . . . Route ------- -11/Scrapyard -10/Materials -9/Materials (discovered 2 exits: [*Min x2]) History --------- Turn | Location | Event 15 | -11/Scrapyard | Discovered new exit (range 15) 68 | -11/Scrapyard | Entered Materials 302 | -10/Materials | Build established: Mutant 408 | -10/Materials | Discovered new exit (range 8) 426 | -10/Materials | Entered another Materials area 426 | -9/Materials | Evolved 2 slots: Weapon x2 573 | -9/Materials | Discovered new exit (range 16) 806 | -9/Materials | Discovered new exit (range 16) 840 | -9/Materials | Build established: Scientist-Skirmisher 923 | -9/Materials | Self-destructed Last Messages --------------- 00740_ K-01 Serf collects debris. 00741_ Acquired 10 matter. 00743_ K-01 Serf collects debris. 00757_ W-16 Scout sends out distress signal. 00762_ Connecting with Terminal... >>Access(Emergency) Found 1 emergency access door: (74,59) Map updated. 00806_ EXIT=FOUND 00814_ Y-45 Defender destroyed. 00817_ Acquired 18 matter. 00819_ Dropped Hvy. Assault Rifle+. 00820_ Acquired 10 matter. 00822_ K-01 Serf collects debris. 00854_ R-06 Scavenger collects Aluminum Leg+. 00914_ Ion Engine+ destroyed. 00919_ Lgt. Assault Rifle+ destroyed. 00919_ Hvy. Assault Rifle+ severed. 00923_ Imp. Aluminum Leg+ destroyed. Map ----- +----------------------------------------------------+ | ?????????????????????????????????????????????????? | | ?????????????????????????????????????????????????? | | ????????????????????????????? ??????????????????? | | ????????????????????????????? ?????????######### | | ????????????????????????????[! "????????#""|"|""# | | ?????????????????????????? [[ T ???????# "|"|" # | | ?????????????????????????? [[ " ####### # | | ????????????????????????? a | | ????????????????????????? [ < | | ??????????????????? ??????# | | ?????????????????? ??????# ######+## # | | ??????????????????# ??????# ## ######### | | ??????????????????# ??????# ## """#?????# ! | | ??????????????????# ??????# ## """#?????# | | ??????????????????# ??????# ## """#?????# | | ??????????????????# ??????+ ## #?????# | | ??????????????????# #?????# ## #?????# | | ??????????????????# #?????# ##+######?????# | | ??????????????????# #?????# #??????????### | | ??????????????????# #?????# #######??????? | | ??????????????????# #?????# | | ??????????????????# #?????# ######+??????? | | ??????????????????# #?#####/## #????????????? | | ??????????????????# ### gg # #????????????? | | ??????????????????# g l # #????????????? | | ??????????????????# ###@ # #????????????? | | ??????????????????# #?# # #????????????? | | ??????????????????# #?# a ????????????? | | ??????????????????# #?# # ??????????? | | ??????????????????# #?#####+## #??????? | | ?????????????????? ???? #?????? | | ????????????????? ?? ??????? | | ???????????????? ??????? | | ????????????????######################## ??????? | | ????????????????????????????????????????? ???????? | | ?????????????????????????????????????????????????? | | ?????????????????????????????????????????????????? | | ?????????????????????????????????????????????????? | | ?????????????????????????????????????????????????? | | ?????????????????????????????????????????????????? | | ?????????????????????????????????????????????????? | | ?????????????????????????????????????????????????? | | ?????????????????????????????????????????????????? | | ?????????????????????????????????????????????????? | | ?????????????????????????????????????????????????? | | ?????????????????????????????????????????????????? | | ?????????????????????????????????????????????????? | | ?????????????????????????????????????????????????? | | ?????????????????????????????????????????????????? | | ?????????????????????????????????????????????????? | +----------------------------------------------------+ Best States ------------- Heat Dissipation 28 Energy Generation 12 Energy Capacity 250 Matter Stores 300 Matter Capacity 300 Sight Range 16 Terrain Scan Density 10 Evasion (%) 55 Item Schematics ----------------- None Robot Schematics ------------------ None Fabricated ------------ Nothing Repaired ---------- Nothing Studied --------- Aluminum Leg | -9/Materials | Hacked Datajack | -9/Materials | Hacked Lgt. Assault Rifle | -9/Materials | Hacked Hvy. Assault Rifle | -9/Materials | Hacked Imp. Aluminum Leg | -9/Materials | Hacked Ion Engine | -9/Materials | Hacked Alien Tech Used ----------------- None Achievements -------------- None Challenges ------------ None Game ------ Seed PartitionWeldingSink Manual? 0 Play Time 00:17:25 Cumulative 29.5 hours Start 2025.12.03 @ 20:16:44 End 2025.12.03 @ 20:33:40 Sessions 1 Manual Loads 0 Difficulty Rogue Special Mode None Game No. 33 Rogue 33 Adventurer 0 Explorer 0 Win Type - Total 0 Types 0/0/0/0/0/0/0/0/0/0 Lore% 11 Gallery% 21 Achievement% 17 Wizard Run 0 Options --------- Layout 0 ASCII 0 Keyboard 0 Movement Mouse Keybinds 0 Fullscreen 0 Font 24/Smallcaps Map View 74x54 Zoom Use 0% Tactical HUD 1 Map Filters NONE Filters NONE Steam 1 RUN: d04d80ad-3c39-4aa9-bb49-1a8e022d3fb0